fUSD/lending_fUSD_20260610
["ID","MTS","AMOUNT","RATE_DAILY","PERIOD"]
[424737727,1781104231000,-166.66,0.00011397,2]
[424737729,1781104231000,-199.12131295,0.00011617,2]
[424737724,1781104231000,-166.66,0.00011288,2]
[424737742,1781104232000,-485.26362913,0.00011693,2]
[424737739,1781104232000,-501.55199785,0.00011693,2]
[424737782,1781104239000,-385.83571343,0.00011693,2]
[424737832,1781104243000,-151.0,0.00011965,2]
[424737828,1781104243000,-279.04498776,0.0001187,2]
[424737826,1781104243000,-626.93,0.00011869,2]
[424737833,1781104243000,-293.36566713,0.00011965,2]
[424737839,1781104243000,-541.36604644,0.00011968,2]
[424737836,1781104243000,-184.28900813,0.00011968,2]
[424737837,1781104243000,-541.36604644,0.00011968,2]
[424737838,1781104243000,-541.36604644,0.00011968,2]
[424737827,1781104243000,-2853.27418643,0.0001187,2]
[424737834,1781104243000,-150.0,0.00011967,2]
[424737831,1781104243000,-350.0,0.00011958,2]
[424737816,1781104243000,-6051.88621922,0.00011693,2]
[424737822,1781104243000,-332.04508762,0.00011745,2]
[424737824,1781104243000,-9757.2417,0.00011868,2]
[424737830,1781104243000,-160.0,0.0001195,2]
[424737823,1781104243000,-215.92376884,0.00011849,2]
[424737825,1781104243000,-2500.0,0.00011869,2]
[424737820,1781104243000,-151.0,0.00011701,2]
[424737821,1781104243000,-151.0,0.00011701,2]
[424737818,1781104243000,-151.0,0.00011701,2]
[424737819,1781104243000,-151.0,0.00011701,2]
[424737817,1781104243000,-151.0,0.00011701,2]
[424737841,1781104243000,-541.36604644,0.00011968,2]
[424737829,1781104243000,-163.0,0.0001195,2]
[424737835,1781104243000,-1000.0,0.00011968,2]
[424737848,1781104243000,-541.36604644,0.00011968,2]
[424737840,1781104243000,-541.36604644,0.00011968,2]
[424737861,1781104243000,-541.36604644,0.00011968,2]
[424737863,1781104243000,-541.36604644,0.00011968,2]
[424737862,1781104243000,-541.36604644,0.00011968,2]
[424737860,1781104243000,-541.36604644,0.00011968,2]
[424737859,1781104243000,-541.36604644,0.00011968,2]
[424737865,1781104243000,-541.36604644,0.00011968,2]
[424737858,1781104243000,-541.36604644,0.00011968,2]
[424737867,1781104243000,-415.11398387,0.00011968,2]
[424737866,1781104243000,-541.36604644,0.00011968,2]
[424737864,1781104243000,-541.36604644,0.00011968,2]
[424737856,1781104243000,-541.36604644,0.00011968,2]
[424737843,1781104243000,-541.36604644,0.00011968,2]
[424737857,1781104243000,-541.36604644,0.00011968,2]
[424737854,1781104243000,-541.36604644,0.00011968,2]
[424737850,1781104243000,-541.36604644,0.00011968,2]
[424737846,1781104243000,-541.36604644,0.00011968,2]
[424737847,1781104243000,-541.36604644,0.00011968,2]
[424737852,1781104243000,-541.36604644,0.00011968,2]
[424737849,1781104243000,-541.36604644,0.00011968,2]
[424737855,1781104243000,-541.36604644,0.00011968,2]
[424737853,1781104243000,-541.36604644,0.00011968,2]
[424737845,1781104243000,-541.36604644,0.00011968,2]
[424737844,1781104243000,-541.36604644,0.00011968,2]
[424737842,1781104243000,-541.36604644,0.00011968,2]
[424737851,1781104243000,-541.36604644,0.00011968,2]
[424737872,1781104245000,-126.25206257,0.00011968,2]
[424737873,1781104245000,-541.36604644,0.00011968,2]
[424737874,1781104245000,-541.36604644,0.00011968,2]
[424737876,1781104245000,-466.80138581,0.00011968,2]
[424737875,1781104245000,-541.36604644,0.00011968,2]
[424737878,1781104246000,-541.36604644,0.00011968,2]
[424737877,1781104246000,-74.56466063,0.00011968,2]
[424737879,1781104246000,-498.0536409,0.00011968,2]
[424737909,1781105432000,-250.0,0.00010258,2]
[424737930,1781105432000,-152.009916,0.00010959,2]
[424737918,1781105432000,-1068.34,0.00010613,2]
[424737916,1781105432000,-151.0,0.0001061,2]
[424737928,1781105432000,-8205.96229481,0.000109,2]
[424737914,1781105432000,-1000.0,0.00010575,2]
[424737915,1781105432000,-151.0,0.0001061,2]
[424737926,1781105432000,-192.27,0.00010813,2]
[424737911,1781105432000,-3674.2,0.00010468,2]
[424737910,1781105432000,-150.0,0.00010258,2]
[424737912,1781105432000,-306.51,0.00010485,2]
[424737908,1781105432000,-47754.22820828,0.000102,2]
[424737921,1781105432000,-252.05,0.0001075,2]
[424737906,1781105432000,-150.0,0.00010199,2]
[424737913,1781105432000,-150.0,0.00010571,2]
[424737907,1781105432000,-51592.14337554,0.000102,2]
[424737904,1781105432000,-1043.14603872,0.00010148,2]
[424737903,1781105432000,-598.59,0.0001012,2]
[424737905,1781105432000,-1998.17881728,0.00010148,2]
[424737920,1781105432000,-205.0,0.00010676,2]
[424737917,1781105432000,-163.65,0.00010613,2]
[424737933,1781105432000,-698.85,0.00011,2]
[424737969,1781105432000,-773.82015862,0.00011668,2]
[424737967,1781105432000,-51244.0,0.00011668,2]
[424737966,1781105432000,-14277.74483817,0.00011668,2]
[424737962,1781105432000,-439.0,0.00011529,2]
[424737961,1781105432000,-252.05,0.00011287,2]
[424737964,1781105432000,-151.0,0.00011612,2]
[424737923,1781105432000,-221.89995572,0.0001075,2]
[424737963,1781105432000,-252.05,0.00011556,2]
[424737965,1781105432000,-21342.07106206,0.00011668,2]
[424737968,1781105432000,-652.67859511,0.00011668,2]
[424737958,1781105432000,-221.44,0.0001126,2]
[424737947,1781105432000,-161.19,0.00011098,2]
[424737938,1781105432000,-252.05,0.00011019,2]
[424737940,1781105432000,-831.43,0.00011022,2]
[424737944,1781105432000,-210.94045192,0.00011068,2]
[424737942,1781105432000,-163.1,0.00011061,2]
[424737956,1781105432000,-250.0,0.0001122,2]
[424737949,1781105432000,-250.0,0.00011132,2]
[424737954,1781105432000,-255.0,0.00011209,2]
[424737951,1781105432000,-500.0,0.0001116,2]
[424738005,1781105438000,-2058.70785397,0.00011867,2]
[424738000,1781105438000,-500.0,0.00011867,2]
[424738001,1781105438000,-2058.70785397,0.00011867,2]
[424737999,1781105438000,-151.0,0.00011866,2]
[424738004,1781105438000,-2058.70785397,0.00011867,2]
[424738002,1781105438000,-2058.70785397,0.00011867,2]
[424737996,1781105438000,-350.0,0.00011803,2]
[424738014,1781105438000,-2058.70785397,0.00011867,2]
[424738003,1781105438000,-2058.70785397,0.00011867,2]
[424737997,1781105438000,-252.05,0.00011825,2]
[424738006,1781105438000,-2058.70785397,0.00011867,2]
[424737975,1781105438000,-151.0,0.00011701,2]
[424738007,1781105438000,-2058.70785397,0.00011867,2]
[424738009,1781105438000,-2058.70785397,0.00011867,2]
[424738011,1781105438000,-2058.70785397,0.00011867,2]
[424738008,1781105438000,-2058.70785397,0.00011867,2]
[424738010,1781105438000,-2058.70785397,0.00011867,2]
[424738013,1781105438000,-2058.70785397,0.00011867,2]
[424738015,1781105438000,-2058.70785397,0.00011867,2]
[424738017,1781105438000,-2058.70785397,0.00011867,2]
[424738020,1781105438000,-2058.70785397,0.00011867,2]
[424738023,1781105438000,-2058.70785397,0.00011867,2]
[424737998,1781105438000,-350.0,0.00011848,2]
[424738012,1781105438000,-2058.70785397,0.00011867,2]
[424737995,1781105438000,-306.51,0.00011795,2]
[424737970,1781105438000,-105561.22834604,0.00011668,2]
[424737990,1781105438000,-151.0,0.00011768,2]
[424737971,1781105438000,-500.0,0.00011668,2]
[424738021,1781105438000,-2058.70785397,0.00011867,2]
[424737973,1781105438000,-220.87,0.00011701,2]
[424737972,1781105438000,-500.0,0.00011668,2]
[424737974,1781105438000,-151.0,0.00011701,2]
[424737983,1781105438000,-151.0,0.00011768,2]
[424737984,1781105438000,-151.0,0.00011768,2]
[424737978,1781105438000,-6821.1652,0.00011767,2]
[424737981,1781105438000,-500.0,0.00011767,2]
[424737976,1781105438000,-151.0,0.00011701,2]
[424737991,1781105438000,-151.0,0.00011768,2]
[424737977,1781105438000,-151.0,0.00011701,2]
[424737980,1781105438000,-1584.33901199,0.00011767,2]
[424737979,1781105438000,-2500.0,0.00011767,2]
[424737985,1781105438000,-151.0,0.00011768,2]
[424737987,1781105438000,-151.0,0.00011768,2]
[424737988,1781105438000,-151.0,0.00011768,2]
[424737989,1781105438000,-151.0,0.00011768,2]
[424737986,1781105438000,-151.0,0.00011768,2]
[424737993,1781105438000,-253.540453,0.00011768,2]
[424737992,1781105438000,-735.5060968,0.00011768,2]
[424737994,1781105438000,-11791.89340483,0.00011768,2]
[424737982,1781105438000,-33267.5685,0.00011768,2]
[424738019,1781105438000,-2058.70785397,0.00011867,2]
[424738016,1781105438000,-2058.70785397,0.00011867,2]
[424738022,1781105438000,-2058.70785397,0.00011867,2]
[424738058,1781105438000,-2029.29774178,0.00011867,2]
[424738061,1781105438000,-2029.29774178,0.00011867,2]
[424738060,1781105438000,-2029.29774178,0.00011867,2]
[424738064,1781105438000,-2029.29774178,0.00011867,2]
[424738066,1781105438000,-2029.29774178,0.00011867,2]
[424738063,1781105438000,-2029.29774178,0.00011867,2]
[424738065,1781105438000,-2029.29774178,0.00011867,2]
[424738067,1781105438000,-2029.29774178,0.00011867,2]
[424738059,1781105438000,-2029.29774178,0.00011867,2]
[424738062,1781105438000,-2029.29774178,0.00011867,2]
[424738068,1781105438000,-2029.29774178,0.00011867,2]
[424738057,1781105438000,-2029.29774178,0.00011867,2]
[424738070,1781105438000,-2029.29774178,0.00011867,2]
[424738069,1781105438000,-2029.29774178,0.00011867,2]
[424738072,1781105438000,-2029.29774178,0.00011867,2]
[424738074,1781105438000,-2029.29774178,0.00011867,2]
[424738075,1781105438000,-2029.29774178,0.00011867,2]
[424738073,1781105438000,-2029.29774178,0.00011867,2]
[424738077,1781105438000,-2029.29774178,0.00011867,2]
[424738076,1781105438000,-2029.29774178,0.00011867,2]
[424738079,1781105438000,-2029.29774178,0.00011867,2]
[424738078,1781105438000,-2029.29774178,0.00011867,2]
[424738018,1781105438000,-2058.70785397,0.00011867,2]
[424738081,1781105438000,-2029.29774178,0.00011867,2]
[424738071,1781105438000,-2029.29774178,0.00011867,2]
[424738049,1781105438000,-2058.70785397,0.00011867,2]
[424738080,1781105438000,-2029.29774178,0.00011867,2]
[424738050,1781105438000,-2058.70785397,0.00011867,2]
[424738025,1781105438000,-2058.70785397,0.00011867,2]
[424738024,1781105438000,-2058.70785397,0.00011867,2]
[424738026,1781105438000,-2058.70785397,0.00011867,2]
[424738037,1781105438000,-2058.70785397,0.00011867,2]
[424738040,1781105438000,-2058.70785397,0.00011867,2]
[424738039,1781105438000,-2058.70785397,0.00011867,2]
[424738054,1781105438000,-2058.70785397,0.00011867,2]
[424738027,1781105438000,-2058.70785397,0.00011867,2]
[424738043,1781105438000,-2058.70785397,0.00011867,2]
[424738045,1781105438000,-2058.70785397,0.00011867,2]
[424738044,1781105438000,-2058.70785397,0.00011867,2]
[424738042,1781105438000,-2058.70785397,0.00011867,2]
[424738035,1781105438000,-2058.70785397,0.00011867,2]
[424738033,1781105438000,-2058.70785397,0.00011867,2]
[424738056,1781105438000,-393.27457522,0.00011867,2]
[424738053,1781105438000,-2058.70785397,0.00011867,2]
[424738055,1781105438000,-2058.70785397,0.00011867,2]
[424738051,1781105438000,-2058.70785397,0.00011867,2]
[424738052,1781105438000,-2058.70785397,0.00011867,2]
[424738047,1781105438000,-2058.70785397,0.00011867,2]
[424738046,1781105438000,-2058.70785397,0.00011867,2]
[424738029,1781105438000,-2058.70785397,0.00011867,2]
[424738031,1781105438000,-2058.70785397,0.00011867,2]
[424738048,1781105438000,-2058.70785397,0.00011867,2]
[424738108,1781105439000,-506.56788453,0.00011867,2]
[424738110,1781105439000,-506.56788453,0.00011867,2]
[424738109,1781105439000,-506.56788453,0.00011867,2]
[424738111,1781105439000,-506.56788453,0.00011867,2]
[424738120,1781105439000,-514.3612366,0.00011867,2]
[424738121,1781105439000,-514.3612366,0.00011867,2]
[424738117,1781105439000,-514.3612366,0.00011867,2]
[424738119,1781105439000,-514.3612366,0.00011867,2]
[424738118,1781105439000,-514.3612366,0.00011867,2]
[424738112,1781105439000,-506.56788453,0.00011867,2]
[424738127,1781105439000,-151.0,0.00011867,2]
[424738114,1781105439000,-506.56788453,0.00011867,2]
[424738116,1781105439000,-506.56788453,0.00011867,2]
[424738115,1781105439000,-506.56788453,0.00011867,2]
[424738122,1781105439000,-514.3612366,0.00011867,2]
[424738128,1781105439000,-151.0,0.00011867,2]
[424738133,1781105439000,-151.0,0.00011867,2]
[424738125,1781105439000,-514.3612366,0.00011867,2]
[424738126,1781105439000,-514.3612366,0.00011867,2]
[424738131,1781105439000,-151.0,0.00011867,2]
[424738123,1781105439000,-514.3612366,0.00011867,2]
[424738107,1781105439000,-506.56788453,0.00011867,2]
[424738113,1781105439000,-506.56788453,0.00011867,2]
[424738105,1781105439000,-506.56788453,0.00011867,2]
[424738093,1781105439000,-1992.4014192,0.00011867,2]
[424738104,1781105439000,-506.56788453,0.00011867,2]
[424738083,1781105439000,-2029.29774178,0.00011867,2]
[424738085,1781105439000,-2029.29774178,0.00011867,2]
[424738084,1781105439000,-2029.29774178,0.00011867,2]
[424738086,1781105439000,-2029.29774178,0.00011867,2]
[424738088,1781105439000,-1992.4014192,0.00011867,2]
[424738082,1781105439000,-2029.29774178,0.00011867,2]
[424738124,1781105439000,-514.3612366,0.00011867,2]
[424738087,1781105439000,-1992.4014192,0.00011867,2]
[424738096,1781105439000,-1992.4014192,0.00011867,2]
[424738089,1781105439000,-1992.4014192,0.00011867,2]
[424738106,1781105439000,-506.56788453,0.00011867,2]
[424738090,1781105439000,-1992.4014192,0.00011867,2]
[424738091,1781105439000,-1992.4014192,0.00011867,2]
[424738092,1781105439000,-1992.4014192,0.00011867,2]
[424738097,1781105439000,-500.0,0.00011867,2]
[424738095,1781105439000,-1992.4014192,0.00011867,2]
[424738098,1781105439000,-265.64691876,0.00011867,2]
[424738099,1781105439000,-353.99080792,0.00011867,2]
[424738100,1781105439000,-232.91439081,0.00011867,2]
[424738101,1781105439000,-506.56788453,0.00011867,2]
[424738102,1781105439000,-506.56788453,0.00011867,2]
[424738103,1781105439000,-506.56788453,0.00011867,2]
[424738094,1781105439000,-1992.4014192,0.00011867,2]
[424738130,1781105439000,-151.0,0.00011867,2]
[424738173,1781105439000,-151.0,0.00011966,2]
[424738132,1781105439000,-151.0,0.00011867,2]
[424738161,1781105439000,-200.0,0.00011872,2]
[424738159,1781105439000,-200.0,0.00011872,2]
[424738163,1781105439000,-151.0,0.00011879,2]
[424738160,1781105439000,-200.0,0.00011872,2]
[424738158,1781105439000,-200.0,0.00011871,2]
[424738166,1781105439000,-69234.542682,0.0001188,2]
[424738176,1781105439000,-159.50863795,0.00011968,2]
[424738165,1781105439000,-3462.1999069,0.0001188,2]
[424738167,1781105439000,-237.1180085,0.0001188,2]
[424738168,1781105439000,-38561.0132061,0.0001188,2]
[424738164,1781105439000,-6367.382911,0.0001188,2]
[424738169,1781105439000,-2734.9407445,0.0001188,2]
[424738170,1781105439000,-215.92376884,0.00011895,2]
[424738174,1781105439000,-151.0,0.00011968,2]
[424738175,1781105439000,-151.0,0.00011968,2]
[424738129,1781105439000,-151.0,0.00011867,2]
[424738177,1781105439000,-152.0,0.00011968,2]
[424738180,1781105439000,-152.0,0.00011982,7]
[424738179,1781105439000,-152.0,0.00011968,2]
[424738178,1781105439000,-152.0,0.00011968,2]
[424738181,1781105439000,-151.0,0.00011984,2]
[424738182,1781105439000,-2211.02651752,0.00012004,5]
[424738172,1781105439000,-151.0,0.00011965,2]
[424738162,1781105439000,-151.0,0.00011879,2]
[424738171,1781105439000,-1068.34,0.0001194,2]
[424738155,1781105439000,-253.26190004,0.00011868,2]
[424738134,1781105439000,-189.708723,0.00011867,2]
[424738136,1781105439000,-500.0,0.00011867,2]
[424738135,1781105439000,-208.47876553,0.00011867,3]
[424738142,1781105439000,-500.0,0.00011867,2]
[424738140,1781105439000,-500.0,0.00011867,2]
[424738138,1781105439000,-500.0,0.00011867,2]
[424738139,1781105439000,-500.0,0.00011867,2]
[424738157,1781105439000,-163.90732302,0.0001187,2]
[424738141,1781105439000,-500.0,0.00011867,2]
[424738137,1781105439000,-500.0,0.00011867,2]
[424738144,1781105439000,-250.0,0.00011867,2]
[424738143,1781105439000,-151.0,0.00011867,2]
[424738145,1781105439000,-2000.0,0.00011867,2]
[424738156,1781105439000,-2000.0,0.00011869,2]
[424738146,1781105439000,-479141.01082732,0.00011868,2]
[424738149,1781105439000,-151.0,0.00011868,2]
[424738150,1781105439000,-151.0,0.00011868,2]
[424738154,1781105439000,-151.0,0.00011868,2]
[424738148,1781105439000,-127230.87844957,0.00011868,2]
[424738153,1781105439000,-151.0,0.00011868,2]
[424738152,1781105439000,-151.0,0.00011868,2]
[424738147,1781105439000,-893628.11072311,0.00011868,2]
[424738151,1781105439000,-151.0,0.00011868,2]
[424738184,1781105440000,-152.0,0.00012009,7]
[424738185,1781105440000,-11.31697125,0.00012027,2]
[424738183,1781105440000,-105.97348248,0.00012004,5]
[424738212,1781105442000,-350.0,0.00012035,2]
[424738216,1781105442000,-2000.0,0.00012071,2]
[424738211,1781105442000,-163.933132,0.0001203,2]
[424738209,1781105442000,-139.68302875,0.00012027,2]
[424738213,1781105442000,-223.0,0.00012071,2]
[424738215,1781105442000,-221.0,0.00012071,2]
[424738210,1781105442000,-200.0,0.00012027,2]
[424738217,1781105442000,-151.0,0.00012084,2]
[424738214,1781105442000,-224.0,0.00012071,2]
[424738247,1781105443000,-500.0,0.00012276,2]
[424738246,1781105443000,-500.0,0.00012276,2]
[424738245,1781105443000,-500.0,0.00012276,2]
[424738243,1781105443000,-500.0,0.00012276,2]
[424738244,1781105443000,-500.0,0.00012276,2]
[424738251,1781105443000,-500.0,0.00012276,2]
[424738257,1781105443000,-543.0,0.00012276,2]
[424738256,1781105443000,-543.0,0.00012276,2]
[424738252,1781105443000,-500.0,0.00012276,2]
[424738259,1781105443000,-543.0,0.00012276,2]
[424738260,1781105443000,-543.0,0.00012276,2]
[424738254,1781105443000,-416.90512628,0.00012276,2]
[424738255,1781105443000,-543.0,0.00012276,2]
[424738250,1781105443000,-500.0,0.00012276,2]
[424738242,1781105443000,-500.0,0.00012276,2]
[424738262,1781105443000,-543.0,0.00012276,2]
[424738265,1781105443000,-543.0,0.00012276,2]
[424738263,1781105443000,-543.0,0.00012276,2]
[424738264,1781105443000,-543.0,0.00012276,2]
[424738261,1781105443000,-543.0,0.00012276,2]
[424738269,1781105443000,-543.0,0.00012276,2]
[424738268,1781105443000,-543.0,0.00012276,2]
[424738253,1781105443000,-500.0,0.00012276,2]
[424738249,1781105443000,-500.0,0.00012276,2]
[424738267,1781105443000,-543.0,0.00012276,2]
[424738248,1781105443000,-397.34799397,0.00012276,2]
[424738225,1781105443000,-179.87957661,0.00012147,2]
[424738219,1781105443000,-289.65,0.00012096,2]
[424738226,1781105443000,-151.0,0.00012167,2]
[424738222,1781105443000,-11791.89340478,0.00012116,2]
[424738224,1781105443000,-500.0,0.00012141,2]
[424738223,1781105443000,-161.17,0.00012123,2]
[424738220,1781105443000,-152.0,0.00012112,7]
[424738221,1781105443000,-1584.33901199,0.00012115,2]
[424738218,1781105443000,-211.320053,0.00012091,2]
[424738227,1781105443000,-350.0,0.00012193,2]
[424738230,1781105443000,-350.0,0.00012243,2]
[424738229,1781105443000,-151.0,0.00012237,2]
[424738231,1781105443000,-151.0,0.00012268,2]
[424738238,1781105443000,-150.0,0.00012276,2]
[424738237,1781105443000,-500.0,0.00012275,2]
[424738236,1781105443000,-2000.0,0.00012271,2]
[424738235,1781105443000,-4722.40181848,0.00012271,2]
[424738233,1781105443000,-3087.97190107,0.00012271,2]
[424738234,1781105443000,-2220.47064812,0.00012271,2]
[424738228,1781105443000,-350.0,0.00012206,2]
[424738232,1781105443000,-264.70019315,0.00012271,2]
[424738240,1781105443000,-150.0,0.00012276,2]
[424738239,1781105443000,-150.0,0.00012276,2]
[424738241,1781105443000,-298.70676482,0.00012276,2]
[424738270,1781105443000,-543.0,0.00012276,2]
[424738258,1781105443000,-543.0,0.00012276,2]
[424738272,1781105443000,-500.0,0.00012276,2]
[424738302,1781105443000,-552.0,0.00012276,2]
[424738303,1781105443000,-500.0,0.00012276,2]
[424738301,1781105443000,-543.0,0.00012276,2]
[424738306,1781105443000,-500.0,0.00012276,2]
[424738313,1781105443000,-500.0,0.00012276,2]
[424738316,1781105443000,-621.40860431,0.00012276,2]
[424738308,1781105443000,-500.0,0.00012276,2]
[424738310,1781105443000,-500.0,0.00012276,2]
[424738311,1781105443000,-500.0,0.00012276,2]
[424738307,1781105443000,-500.0,0.00012276,2]
[424738309,1781105443000,-500.0,0.00012276,2]
[424738314,1781105443000,-500.0,0.00012276,2]
[424738315,1781105443000,-500.0,0.00012276,2]
[424738317,1781105443000,-500.0,0.00012276,2]
[424738318,1781105443000,-500.0,0.00012276,2]
[424738319,1781105443000,-500.0,0.00012276,2]
[424738320,1781105443000,-500.0,0.00012276,2]
[424738321,1781105443000,-500.0,0.00012276,2]
[424738324,1781105443000,-500.0,0.00012276,2]
[424738323,1781105443000,-500.0,0.00012276,2]
[424738322,1781105443000,-500.0,0.00012276,2]
[424738325,1781105443000,-523.29570536,0.00012276,2]
[424738266,1781105443000,-543.0,0.00012276,2]
[424738304,1781105443000,-500.0,0.00012276,2]
[424738300,1781105443000,-543.0,0.00012276,2]
[424738312,1781105443000,-500.0,0.00012276,2]
[424738298,1781105443000,-543.0,0.00012276,2]
[424738305,1781105443000,-500.0,0.00012276,2]
[424738283,1781105443000,-500.0,0.00012276,2]
[424738282,1781105443000,-500.0,0.00012276,2]
[424738284,1781105443000,-543.0,0.00012276,2]
[424738271,1781105443000,-543.0,0.00012276,2]
[424738277,1781105443000,-500.0,0.00012276,2]
[424738273,1781105443000,-500.0,0.00012276,2]
[424738274,1781105443000,-543.0,0.00012276,2]
[424738280,1781105443000,-500.0,0.00012276,2]
[424738279,1781105443000,-500.0,0.00012276,2]
[424738275,1781105443000,-500.0,0.00012276,2]
[424738286,1781105443000,-500.0,0.00012276,2]
[424738285,1781105443000,-500.0,0.00012276,2]
[424738296,1781105443000,-500.0,0.00012276,2]
[424738290,1781105443000,-543.0,0.00012276,2]
[424738287,1781105443000,-500.0,0.00012276,2]
[424738288,1781105443000,-500.0,0.00012276,2]
[424738291,1781105443000,-500.0,0.00012276,2]
[424738293,1781105443000,-500.0,0.00012276,2]
[424738289,1781105443000,-514.95261224,0.00012276,2]
[424738292,1781105443000,-500.0,0.00012276,2]
[424738294,1781105443000,-500.0,0.00012276,2]
[424738299,1781105443000,-207.47344829,0.00012276,2]
[424738297,1781105443000,-500.0,0.00012276,2]
[424738295,1781105443000,-500.0,0.00012276,2]
[424738363,1781105444000,-500.0,0.00012415,2]
[424738361,1781105444000,-453.0,0.00012378,2]
[424738360,1781105444000,-350.0,0.00012374,2]
[424738362,1781105444000,-831.43,0.00012399,2]
[424738352,1781105444000,-150.0,0.00012276,2]
[424738355,1781105444000,-559.61424166,0.00012308,2]
[424738356,1781105444000,-433.0,0.0001232,2]
[424738358,1781105444000,-215.03290396,0.00012329,2]
[424738354,1781105444000,-2915.87731537,0.00012296,2]
[424738364,1781105444000,-270.34816026,0.00012424,2]
[424738359,1781105444000,-215.03290396,0.00012329,2]
[424738368,1781105444000,-2000.0,0.00012471,2]
[424738373,1781105444000,-152.0,0.00012648,2]
[424738365,1781105444000,-559.61424166,0.00012438,2]
[424738369,1781105444000,-215.575497,0.00012555,2]
[424738367,1781105444000,-11791.89340478,0.00012464,2]
[424738370,1781105444000,-559.61424166,0.00012569,2]
[424738371,1781105444000,-199.040055,0.00012618,2]
[424738374,1781105444000,-152.0,0.00012648,2]
[424738372,1781105444000,-152.0,0.00012648,2]
[424738377,1781105444000,-151.0,0.00012648,2]
[424738380,1781105444000,-151.0,0.00012648,2]
[424738379,1781105444000,-151.0,0.00012648,2]
[424738378,1781105444000,-151.0,0.00012648,2]
[424738366,1781105444000,-1584.33901199,0.00012463,2]
[424738357,1781105444000,-166.34,0.00012329,2]
[424738326,1781105444000,-500.0,0.00012276,2]
[424738350,1781105444000,-500.0,0.00012276,2]
[424738376,1781105444000,-152.0,0.00012648,2]
[424738328,1781105444000,-500.0,0.00012276,2]
[424738327,1781105444000,-500.0,0.00012276,2]
[424738329,1781105444000,-500.0,0.00012276,2]
[424738337,1781105444000,-500.0,0.00012276,2]
[424738332,1781105444000,-500.0,0.00012276,2]
[424738331,1781105444000,-500.0,0.00012276,2]
[424738336,1781105444000,-500.0,0.00012276,2]
[424738334,1781105444000,-500.0,0.00012276,2]
[424738333,1781105444000,-500.0,0.00012276,2]
[424738330,1781105444000,-500.0,0.00012276,2]
[424738335,1781105444000,-500.0,0.00012276,2]
[424738338,1781105444000,-500.0,0.00012276,2]
[424738344,1781105444000,-500.0,0.00012276,2]
[424738340,1781105444000,-500.0,0.00012276,2]
[424738345,1781105444000,-150.0,0.00012276,2]
[424738343,1781105444000,-500.0,0.00012276,2]
[424738342,1781105444000,-500.0,0.00012276,2]
[424738341,1781105444000,-150.0,0.00012276,2]
[424738339,1781105444000,-500.0,0.00012276,2]
[424738346,1781105444000,-500.0,0.00012276,2]
[424738347,1781105444000,-500.0,0.00012276,2]
[424738348,1781105444000,-200.0,0.00012276,2]
[424738349,1781105444000,-152.37481355,0.00012276,2]
[424738351,1781105444000,-202.32764356,0.00012276,2]
[424738353,1781105444000,-151.47284327,0.00012276,2]
[424738381,1781105444000,-151.0,0.00012648,2]
[424738375,1781105444000,-152.0,0.00012648,2]
[424738434,1781105444000,-500.0,0.00013698,2]
[424738412,1781105444000,-150.0,0.0001335,2]
[424738415,1781105444000,-150.0,0.0001337,2]
[424738409,1781105444000,-350.0,0.0001325,2]
[424738410,1781105444000,-1068.34,0.00013267,2]
[424738411,1781105444000,-735.5060968,0.00013334,2]
[424738419,1781105444000,-559.61424166,0.00013482,2]
[424738418,1781105444000,-314.91814026,0.00013445,2]
[424738420,1781105444000,-1584.33901199,0.00013508,2]
[424738421,1781105444000,-11791.89340478,0.00013508,2]
[424738422,1781105444000,-221.64429931,0.0001351,2]
[424738428,1781105444000,-316.0,0.000136,2]
[424738424,1781105444000,-10000.0,0.00013513,2]